[Event "Gibraltar Amateurs B 2020"]
[Site "Caleta"]
[Date "2020.01.27"]
[Round "3.1"]
[White "Marani, Luca"]
[Black "Sedgwick, David"]
[Result "1-0"]
[ECO "C14"]
[WhiteElo "1796"]
[BlackElo "1894"]
[Annotator "NA"]
[PlyCount "143"]
[EventDate "2020.01.20"]
[EventType "swiss"]
[EventCountry "GGB"]
[SourceTitle "playchess.com"]
[Source "ChessBase"]
[SourceQuality "1"]
[TimeControl "6600+10"]

{[%evp 19,139,14,23,32767,32767,17,32767,32767,32767,32767,32767,32767,32767,55,109,32767,32767,25,32767,32767,32767,32767,32767,32767,32767,32767,150,126,202,212,213,213,231,155,32767,145,32767,153,32767,32767,189,177,202,204,277,256,32767,335,32767,32767,32767,32767,32767,335,384,570,32767,32767,715,32767,32767,32767,1453,689,1296,357,32767,32767,289,251,357,334,350,366,545,579,32767,32767,32767,32767,32767,32767,32767,32767,1518,1556,1364,1565,1377,641,703,677,660,787,618,758,267,760,717,1252,32767,991,645,543,32767,32767,690,700,598,978,1229,1173,1279,3515,1473,5073,1690,1958,5716,5635,12839,29980]} 1. e4 {[%emt 0:05:53]} e6 {[%emt 0:00:00]} 2. d4 {[%emt 0:00:10]} d5 {[%emt 0:00:03]} 3. Nc3 {[%emt 0:00:22]} Nf6 {[%emt 0:00:06]} 4. Bg5 {[%emt 0:00:26]} Be7 {[%emt 0:00:03]} 5. e5 {[%emt 0:00:26]} Nfd7 {[%emt 0:00:01]} 6. h4 {[%emt 0:00:21]} c5 {[%emt 0:00:07]} 7. Bxe7 {[%emt 0:11:58]} Kxe7 {[%emt 0:00:08]} 8. f4 {[%emt 0:03:16]} cxd4 {[%emt 0:01:08]} 9. Qxd4 {[%emt 0:07:53]} Qb6 {[%emt 0:00:12]} 10. Nf3 {[%emt 0:07:00]} Qxd4 {[%emt 0:00:47]} 11. Nxd4 {[%emt 0:00:22]} Nc6 {[%emt 0:00:29]} 12. O-O-O {[%emt 0:05:25]} f6 {[%emt 0:02:09]} 13. exf6+ {[%emt 0:35:13]} Nxf6 {[%emt 0:00:28]} 14. Nf3 {[%emt 0:02:14]} Re8 {[%emt 0:03:45]} 15. Bb5 {[%emt 0:06:55]} Bd7 {[%emt 0:03:16]} 16. Rhe1 {[%emt 0:02:51]} Kf8 {[%emt 0:01:26]} 17. Ne5 {[%emt 0:02:52]} a6 {[%emt 0:03:56]} 18. Bd3 {[%emt 0:02:08]} g6 {[%emt 0:04:05]} 19. Be2 {[%emt 0:02:41]} d4 {[%emt 0:04:47]} 20. Ne4 {[%emt 0:02:05]} Nxe4 {[%emt 0:03:02]} 21. Nxd7+ {[%emt 0:00:07]} Ke7 {[%emt 0:06:32]} 22. Nb6 {[%emt 0:00:16]} Rad8 {[%emt 0:01:14] [#]} 23. Bxa6 $1 {[%emt 0:05:37]} bxa6 {[%emt 0:03:32]} 24. Rxe4 {[%emt 0:00:03]} Kf7 {[%emt 0:04:30]} 25. Nc4 {[%emt 0:00:06]} Re7 {[%emt 0:04:45]} 26. c3 {[%emt 0:01:16]} dxc3 {[%emt 0:09:15]} 27. Ne5+ {[%emt 0:01:13]} Kf6 {[%emt 0:01:23]} 28. bxc3 {[%emt 0:01:51]} ({Not} 28. Nxc6 cxb2+ 29. Kxb2 Rxd1 $11) 28... Rxd1+ {[%emt 0:01:24]} 29. Kxd1 {[%emt 0:00:01]} Nxe5 {[%emt 0:00:44]} 30. Rxe5 {[%emt 0:00:15]} Rc7 {[%emt 0:01:10]} 31. Kc2 {[%emt 0:00:10]} h5 {[%emt 0:02:17]} (31... Ke7 $142 32. Ra5 Rc4) 32. Ra5 {[%emt 0:01:00]} Rc6 {[%emt 0:01:11]} 33. g3 {[%emt 0:00:23]} Rd6 {[%emt 0:00:57]} 34. c4 {[%emt 0:00:19]} Rd4 {[%emt 0:02:11]} 35. Kc3 {[%emt 0:00:26]} Rd1 {[%emt 0:00:07]} 36. Kb4 {[%emt 0:01:05]} Rb1+ {[%emt 0:00:53]} 37. Kc5 {[%emt 0:00:10]} Rg1 {[%emt 0:00:08]} 38. Ra3 {[%emt 0:00:04]} Kf5 {[%emt 0:02:20]} 39. Kb6 {[%emt 0:00:10]} Ke4 {[%emt 0:01:30]} 40. c5 {[%emt 0:00:30]} Rb1+ {[%emt 0:01:58]} 41. Kxa6 {[%emt 0:00:35]} (41. Rb3 $142) 41... Kd5 {[%emt 0:00:56]} 42. Rc3 $2 {[%emt 0:00:17]} (42. Rb3 Ra1 43. Kb6) 42... Kc6 {[%emt 0:01:26]} 43. Ka5 {[%emt 0:00:17]} Rb8 {[%emt 0:00:45]} (43... Rb5+ {was called for.} 44. Ka4 Rb2) 44. a3 {[%emt 0:00:03]} Rb5+ {[%emt 0:01:49]} 45. Ka4 {[%emt 0:00:11]} Rb8 {[%emt 0:01:18]} 46. Re3 {[%emt 0:00:07]} Re8 {[%emt 0:01:29]} 47. Kb4 {[%emt 0:00:06]} Kd5 {[%emt 0:02:22]} 48. Re5+ {[%emt 0:00:02]} Kd4 {[%emt 0:01:07]} 49. c6 {[%emt 0:00:06]} Rb8+ {[%emt 0:00:04]} 50. Rb5 {[%emt 0:00:06]} Rc8 {[%emt 0:01:07]} 51. Rb6 {[%emt 0:00:01]} Kd5 {[%emt 0:01:05]} 52. Kb5 {[%emt 0:00:01]} Kd6 {[%emt 0:01:28]} 53. a4 {[%emt 0:00:12]} Rf8 {[%emt 0:01:54]} 54. a5 {[%emt 0:00:11]} (54. Rb7 $142 e5 55. fxe5+ Ke6 56. a5) 54... Rf5+ {[%emt 0:00:18]} 55. Ka6 {[%emt 0:00:01]} Kc7 {[%emt 0:00:26]} 56. Rb5 {[%emt 0:00:13]} Rf8 {[%emt 0:00:44]} 57. Re5 {[%emt 0:00:17]} Ra8+ {[%emt 0:03:00]} 58. Kb5 {[%emt 0:00:02]} Rb8+ {[%emt 0:00:32]} 59. Kc5 {[%emt 0:00:07]} Ra8 {[%emt 0:01:31]} 60. Kb4 {[%emt 0:00:09]} Kd6 {[%emt 0:02:12]} 61. Rc5 {[%emt 0:00:13]} Kc7 {[%emt 0:01:03]} 62. Kc4 {[%emt 0:00:05]} Rb8 {[%emt 0:02:46]} 63. Kd4 {[%emt 0:00:15]} Rb3 {[%emt 0:01:20]} 64. Rc3 {[%emt 0:00:13]} Rb5 {[%emt 0:00:09]} 65. Ra3 {[%emt 0:00:06]} Kxc6 {[%emt 0:02:00]} 66. a6 {[%emt 0:00:01]} Rd5+ {[%emt 0:00:33]} 67. Ke4 {[%emt 0:00:02]} Rd8 {[%emt 0:00:14]} 68. a7 {[%emt 0:00:02]} Ra8 {[%emt 0:00:24]} 69. Ke5 {[%emt 0:00:05]} Kb7 $18 {[%emt 0:01:20]} 70. Kxe6 {[%emt 0:00:10]} Re8+ {[%emt 0:00:24]} 71. Kf6 {[%emt 0:00:02]} Ka8 {[%emt 0:00:09]} 72. Kxg6 {[%emt 0:00:06]} 1-0

[Event "Gibraltar Amateurs B 2020"]
[Site "Caleta"]
[Date "2020.01.27"]
[Round "3.2"]
[White "Nwachukwu, Chino"]
[Black "Johansson, Daniel"]
[Result "1-0"]
[ECO "B98"]
[WhiteElo "1868"]
[BlackElo "1799"]
[Annotator "NA"]
[PlyCount "90"]
[EventDate "2020.01.20"]
[EventType "swiss"]
[EventCountry "GGB"]
[SourceTitle "playchess.com"]
[Source "ChessBase"]
[SourceQuality "1"]
[TimeControl "6600+10"]

{[%evp 8,90,25,29,32767,14,32767,7,32767,32767,47,25,32767,32767,32767,32767,-12,32767,-62,32767,32767,32767,32767,32767,32767,32767,32767,-320,32767,32767,0,0,0,32767,0,0,32767,32767,32767,0,0,-201,32767,-133,0,-136,0,0,0,0,236,260,292,281,241,0,0,0,0,32767,32767,32767,32767,32767,32767,32767,32767,32767,32767,32767,710,32767,32767,32767,32767,32767,32767,1484,11499,1335,1602,1551,2123,12837,29985]} 1. e4 {[%emt 0:10:07]} c5 {[%emt 0:02:13]} 2. Nf3 {[%emt 0:00:08]} e6 {[%emt 0:00:17]} 3. d4 {[%emt 0:00:07]} cxd4 {[%emt 0:00:10]} 4. Nxd4 {[%emt 0:00:06]} Nf6 {[%emt 0:00:49]} 5. Nc3 {[%emt 0:00:06]} d6 {[%emt 0:01:41]} 6. Bg5 {[%emt 0:04:43]} a6 {[%emt 0:03:09]} 7. f4 {[%emt 0:01:41]} Be7 {[%emt 0:01:43]} 8. Qf3 {[%emt 0:00:08]} Qc7 {[%emt 0:06:43]} 9. O-O-O {[%emt 0:00:50]} Nc6 {[%emt 0:22:12]} 10. g4 {[%emt 0:09:38]} Nxd4 {[%emt 0:00:00] B98: Sicilian Najdorf: 6 Bg5 e6 7 f4 Be7, sidelines} (10... Bd7 11. Nb3 Rc8 12. Bxf6 gxf6 13. Bd3 Na5 14. Rhe1 Nxb3+ 15. axb3 Qa5 16. Kb1 h5 17. h3 Bc6 18. Ne2 Qc5 19. Nc3 Qa5 20. Ne2 Qc5 21. Nc3 Qa5 22. f5 hxg4 23. hxg4 Qe5 24. Rh1 Kd7 25. Ne2 Rcg8 {½-½ (25) Sriram,J (2418)-Vijayalakshmi,S (2384) Mexico City 2016}) 11. Rxd4 {[%emt 0:00:28]} b5 {[%emt 0:01:48]} 12. Bxf6 {[%emt 0:04:05]} Bxf6 {[%emt 0:06:41]} 13. Bxb5+ {[%emt 0:01:09]} axb5 {[%emt 0:08:58]} 14. Nxb5 {[%emt 0:00:02]} Qc6 {[%emt 0:00:30]} 15. Nxd6+ {[%emt 0:11:57]} Ke7 {[%emt 0:04:10]} 16. Rc4 {[%emt 0:13:59]} Bxb2+ {[%emt 0:11:23]} 17. Kxb2 {[%emt 0:04:42]} Rb8+ $146 {[%emt 0:01:51]} ({Predecessor:} 17... Qxd6 18. e5 {0-1 (43) Orel,K-Vucko,M Bled 1999}) 18. Kc1 {[%emt 0:03:46]} Qxd6 {[%emt 0:03:55]} 19. Rd1 {[%emt 0:00:17]} Qb6 {[%emt 0:08:56]} 20. Qa3+ {[%emt 0:01:28]} Ke8 $1 {[%emt 0:07:51]} 21. Qa4+ {[%emt 0:01:46]} Ke7 {[%emt 0:04:34]} 22. Qa3+ {[%emt 0:00:37]} Ke8 {[%emt 0:01:47]} 23. Rcd4 {[%emt 0:09:51]} Rb7 {[%emt 0:05:28]} 24. R1d3 $2 {[%emt 0:06:49]} (24. Rd6 $11 Qc7 25. f5) 24... Bd7 {[%emt 0:01:41] [#]} 25. Rd6 {[%emt 0:03:44] [#]} (25. Rb3 $1 $11 {[%mdl 512] keeps the balance.} Bb5 {[#]} 26. Rc4 $3 {[%mdl 576] Pin}) 25... Qb5 {[%emt 0:03:21]} (25... Qb1+ $1 $17 26. Kd2 Rc7) 26. e5 {[%emt 0:07:36]} (26. Rb3 $11 {keeps the balance.} Qf1+ {[%mdl 64] Double Attack} 27. Kb2 Rxb3+ 28. axb3 Qxf4 {[%mdl 64] Double Attack} 29. Qa8+ Ke7 {[#]} 30. Rxd7+ $1 {[%mdl 512]} Kxd7 31. Qxh8 {[%mdl 64] Double Attack}) 26... f6 {[%emt 0:00:47] [#]} 27. Rxd7 $1 {[%emt 0:00:55]} Rxd7 {[%emt 0:00:24]} 28. Qa8+ {[%emt 0:00:08] [#]} Ke7 $2 {[%emt 0:00:41]} (28... Kf7 $1 $11 29. Qxh8 Rxd3 30. exf6 {[#]} (30. cxd3 fxe5 31. Qc8 exf4 $11) 30... Rd1+ $1 {[%mdl 576] Decoy} 31. Kxd1 Qf1+ 32. Kd2 Qxf4+ 33. Kc3 Qxf6+ 34. Kb3 Qf3+ 35. c3 Qd1+ 36. Ka3 Qd6+ 37. Kb3 Qd1+ 38. Ka3 Qd6+ 39. Kb3 Qd1+) 29. Qxh8 {[%emt 0:01:22] Double Attack} Rxd3 {[%emt 0:00:11]} 30. Qxg7+ {[%emt 0:00:13] Double Attack} ({Not} 30. cxd3 Qc6+ 31. Kd2 Qg2+ 32. Kc3 Qc6+ 33. Kd4 fxe5+ 34. fxe5 Qd5+ 35. Kc3 Qa5+ 36. Kc4 Qxa2+ 37. Kc3 Qa5+ 38. Kc2 Qxe5 $11) 30... Kd8 {[%emt 0:00:29] [#]} 31. Qxf6+ $2 {[%emt 0:00:15]} ({Worse is} 31. cxd3 Qc5+ 32. Kd2 Qf2+ 33. Kc3 Qc5+ 34. Kb2 Qb4+ 35. Kc2 Qc5+ 36. Kb3 Qb5+ 37. Ka3 Qa5+ 38. Kb2 Qb6+ 39. Kc3 Qc5+ 40. Kd2 Qf2+ 41. Kc3 Qc5+ $11) (31. Qf8+ $1 $18 Kd7 32. cxd3 Qc6+ 33. Kd2 Qg2+ 34. Kc3 Qc6+ 35. Kd4 fxe5+ 36. Kxe5 Qc7+ 37. Kd4 Qb6+ 38. Qc5 Qb2+ 39. Ke3 Qxh2 40. Qb5+ Kd6 41. Qe5+ Kd7 42. Qd4+ Ke7 43. Qe4) 31... Kc7 {[%emt 0:00:11]} 32. cxd3 {[%emt 0:01:12]} Qc5+ $1 {[%emt 0:00:24]} 33. Kd1 {[%emt 0:02:20]} Qg1+ {[%emt 0:00:04]} 34. Kc2 {[%emt 0:01:19]} Qf2+ {[%emt 0:00:04]} 35. Kb3 {[%emt 0:00:17]} Qb6+ {[%emt 0:00:02]} 36. Kc4 {[%emt 0:00:34]} Qc6+ {[%emt 0:00:23]} 37. Kd4 {[%emt 0:00:14]} Qd5+ {[%emt 0:00:11]} 38. Ke3 {[%emt 0:00:07]} Qc5+ {[%emt 0:00:07]} 39. Kf3 {[%emt 0:00:54]} Qd5+ {[%emt 0:00:25]} 40. Kg3 {[%emt 0:00:07]} Qxd3+ {[%emt 0:00:05]} 41. Kh4 {[%emt 0:00:07]} Qd2 {[%emt 0:00:07]} 42. Qe7+ {[%emt 0:00:31]} Kc8 {[%emt 0:00:12]} 43. Qxe6+ {[%emt 0:00:27]} Kb7 {[%emt 0:00:03]} 44. Qf7+ {[%emt 0:01:32]} Kc6 {[%emt 0:00:11]} 45. h3 $18 {[%emt 0:00:35]} Qd3 {[%emt 0:00:38]} 1-0

[Event "Gibraltar Amateurs B 2020"]
[Site "Caleta"]
[Date "2020.01.27"]
[Round "3.3"]
[White "Bryant, Richard B E"]
[Black "Dragic, Dragan"]
[Result "1-0"]
[ECO "C45"]
[WhiteElo "1849"]
[BlackElo "1781"]
[Annotator "NA"]
[PlyCount "67"]
[EventDate "2020.01.20"]
[EventType "swiss"]
[EventCountry "GGB"]
[SourceTitle "playchess.com"]
[Source "ChessBase"]
[SourceQuality "1"]
[TimeControl "6600+10"]

1. e4 {[%emt 0:00:00]} e5 {[%emt 0:12:17]} 2. Nf3 {[%emt 0:00:07]} Nc6 {[%emt 0:00:18]} 3. d4 {[%emt 0:00:22]} exd4 {[%emt 0:03:02]} 4. Nxd4 {[%emt 0:00:06]} Nf6 {[%emt 0:00:24]} 5. Nxc6 {[%emt 0:00:25]} bxc6 {[%emt 0:01:00]} 6. Bd3 {[%emt 0:00:26]} Bb4+ {[%emt 0:04:09]} 7. c3 {[%emt 0:00:23]} Bc5 {[%emt 0:03:02]} 8. e5 {[%emt 0:05:17]} Qe7 {[%emt 0:05:10] [#]} 9. O-O $1 {[%emt 0:00:39]} Nd5 {[%emt 0:01:13]} 10. Nd2 {[%emt 0:07:01]} Nf4 {[%emt 0:00:49]} 11. Bc2 {[%emt 0:00:53]} Ba6 {[%emt 0:01:41]} 12. c4 {[%emt 0:04:17]} Ng6 {[%emt 0:06:41]} 13. Re1 {[%emt 0:10:24]} O-O-O {[%emt 0:05:46]} (13... O-O $1 $14) 14. a3 {[%emt 0:02:09]} Nxe5 {[%emt 0:08:05]} 15. b4 {[%emt 0:01:37]} Bd4 {[%emt 0:00:24]} 16. Rb1 {[%emt 0:00:24]} Rhe8 {[%emt 0:01:22]} 17. Re4 {[%emt 0:05:05]} c5 {[%emt 0:01:36]} 18. bxc5 {[%emt 0:12:14]} Qxc5 {[%emt 0:02:14]} 19. Qe2 {[%emt 0:00:47]} Bxc4 $2 {[%emt 0:01:47]} (19... f5 $19 20. Rxd4 Qxd4) 20. Nxc4 {[%emt 0:04:42]} Qxc4 {[%emt 0:00:29]} 21. Qd2 {[%emt 0:02:03]} (21. Qd1 $1 $11 Ng4 22. Bd3 Nxf2 23. Rxd4 (23. Bxc4 Nxd1+ {[%mdl 64] Discovered Attack} 24. Rxd4 Re1+ 25. Bf1 Nc3 $11) 23... Nxd1 24. Rxc4 Re1+ 25. Bf1) 21... c5 {[%emt 0:03:05]} 22. Bb2 {[%emt 0:09:58]} Nc6 {[%emt 0:05:03]} 23. Bd3 {[%emt 0:02:20]} Qa4 $2 {[%emt 0:02:51]} (23... Qa2 $17 24. Qc1 Rxe4 25. Bxe4 Re8 26. Bxd4 (26. Bxc6 $2 Bxb2 27. Bb7+ Kc7 $19) 26... Rxe4 27. Bxg7 Re2) 24. Bxd4 {[%emt 0:08:38]} Rxe4 {[%emt 0:02:21]} ({Don't blunder} 24... Nxd4 $2 25. Qf4 $18) 25. Bxe4 $2 {[%emt 0:03:58]} (25. Bxc5 $16 {and life is bright.} Rde8 26. Bxe4 Qxe4 27. Rc1) 25... Qxd4 {[%emt 0:00:55]} 26. Qc2 {[%emt 0:01:34]} Qd6 $2 {[%emt 0:07:36]} ({Black should play} 26... d5 $17 27. Bf3 (27. Bf5+ $2 Kc7 $19) 27... c4) 27. Qa4 {[%emt 0:05:13]} Re8 {[%emt 0:02:27]} 28. Bxc6 {[%emt 0:05:22]} Qxc6 {[%emt 0:00:47]} 29. Qxa7 {[%emt 0:00:38]} Qb5 {[%emt 0:06:56]} 30. Rc1 {[%emt 0:01:45]} Re5 {[%emt 0:01:10]} 31. h3 {[%emt 0:01:12]} Qc6 {[%emt 0:02:43]} 32. Rb1 $18 {[%emt 0:00:42]} Qd6 {[%emt 0:10:05]} 33. Qa8+ {[%emt 0:00:12]} Kc7 {[%emt 0:00:13]} 34. Qb8+ {[%emt 0:00:05] Kd8} 1-0

[Event "Gibraltar Amateurs B 2020"]
[Site "Caleta"]
[Date "2020.01.27"]
[Round "3.4"]
[White "Nebel, Uwe"]
[Black "Greco, Joseph"]
[Result "0-1"]
[ECO "C25"]
[WhiteElo "1847"]
[BlackElo "1691"]
[Annotator "NA"]
[PlyCount "136"]
[EventDate "2020.01.20"]
[EventType "swiss"]
[EventCountry "GGB"]
[SourceTitle "playchess.com"]
[Source "ChessBase"]
[SourceQuality "1"]
[TimeControl "6600+10"]

1. e4 {[%emt 0:00:00]} g6 {[%emt 0:02:49]} 2. Nc3 {[%emt 0:00:23]} e5 {[%emt 0:03:57]} 3. Bc4 {[%emt 0:04:03]} c6 {[%emt 0:03:50]} 4. Nf3 {[%emt 0:04:06]} Bg7 {[%emt 0:04:02]} 5. a4 {[%emt 0:07:29]} Ne7 {[%emt 0:05:48]} 6. d3 {[%emt 0:06:02]} d6 {[%emt 0:04:14]} 7. Be3 {[%emt 0:06:18]} d5 {[%emt 0:10:42]} 8. exd5 {[%emt 0:00:20]} cxd5 {[%emt 0:00:07]} 9. Bb5+ {[%emt 0:00:11]} Nbc6 {[%emt 0:00:42]} 10. d4 {[%emt 0:00:55]} e4 {[%emt 0:10:46]} 11. Ne5 {[%emt 0:02:28]} (11. Ng1 $17 {was necessary.}) 11... f6 {[%emt 0:02:21]} 12. Nxc6 {[%emt 0:03:00]} bxc6 {[%emt 0:00:34]} 13. Be2 {[%emt 0:00:21]} Nf5 {[%emt 0:05:00]} 14. O-O {[%emt 0:04:49]} h5 {[%emt 0:03:36]} 15. Qd2 {[%emt 0:06:33]} h4 {[%emt 0:07:42]} 16. f3 {[%emt 0:03:26]} Nxe3 {[%emt 0:02:37]} 17. Qxe3 {[%emt 0:00:07]} Bh6 {[%emt 0:00:12]} 18. f4 {[%emt 0:00:18]} ({White should try} 18. Qf2 $15 exf3 19. Bxf3) 18... Rb8 {[%emt 0:12:05]} 19. Nxe4 {[%emt 0:02:17]} dxe4 {[%emt 0:03:45]} 20. Qxe4+ {[%emt 0:00:09]} Kf7 {[%emt 0:01:24]} 21. Bc4+ {[%emt 0:07:12]} Kg7 {[%emt 0:00:30]} 22. b3 {[%emt 0:00:28]} Bf5 {[%emt 0:06:02]} 23. Qxc6 {[%emt 0:02:00]} Qxd4+ {[%emt 0:00:15] Double Attack} 24. Kh1 {[%emt 0:00:07]} Rhc8 {[%emt 0:00:54]} 25. c3 {[%emt 0:04:11]} Qd2 {[%emt 0:04:08]} ({Weaker is} 25... Rxc6 26. cxd4 Be4 27. Kg1 $19) 26. Qf3 {[%emt 0:03:39] [#]} h3 $1 {[%emt 0:00:47]} 27. g4 {[%emt 0:00:38] [#]} Bd7 $2 {[%emt 0:00:37]} (27... Bxf4 $1 {[%csl Gf4][%cal Rd2h2][%mdl 512]} 28. Rf2 {[#]} (28. Qxf4 Qg2#) 28... Be4 $1 {[%mdl 576] Deflection} 29. Qxe4 Qxf2) 28. Rad1 {[%emt 0:00:25]} Qg2+ {[%emt 0:02:58]} 29. Qxg2 {[%emt 0:00:07]} hxg2+ {[%emt 0:00:07]} 30. Kxg2 {[%emt 0:00:15]} Bxg4 {[%emt 0:01:10]} 31. Rd4 {[%emt 0:02:31]} Re8 {[%emt 0:01:42]} 32. Kf2 {[%emt 0:03:52]} Re7 {[%emt 0:00:23]} 33. Rg1 {[%emt 0:00:57]} Bf5 {[%emt 0:00:22]} 34. a5 {[%emt 0:01:38]} Re4 {[%emt 0:00:30]} 35. Rxe4 {[%emt 0:05:32]} Bxe4 {[%emt 0:00:02]} 36. Re1 {[%emt 0:00:16]} f5 {[%emt 0:00:07]} 37. Rd1 {[%emt 0:00:52]} Rb7 {[%emt 0:00:10]} 38. Kg3 {[%emt 0:00:28]} Kh7 {[%emt 0:02:02]} 39. a6 {[%emt 0:03:25]} Rc7 {[%emt 0:00:14]} 40. Rc1 {[%emt 0:02:14]} Bg7 {[%emt 0:00:11]} 41. Kf2 {[%emt 0:02:05]} Bf6 {[%emt 0:00:04]} 42. Kg3 {[%emt 0:00:13]} Kg7 {[%emt 0:00:18]} 43. Kf2 {[%emt 0:00:26]} Rd7 {[%emt 0:00:22]} 44. Ke3 {[%emt 0:01:01]} Re7 {[%emt 0:00:10]} 45. Kf2 {[%emt 0:00:16]} Bh4+ {[%emt 0:00:11]} 46. Kf1 {[%emt 0:00:18]} Bf3 {[%emt 0:00:26]} 47. b4 {[%emt 0:00:46]} Re4 {[%emt 0:00:12]} 48. Bd5 {[%emt 0:00:30]} Be2+ {[%emt 0:00:21]} 49. Kg1 {[%emt 0:00:21]} Rxf4 {[%emt 0:00:06]} 50. c4 {[%emt 0:00:33]} Rg4+ {[%emt 0:00:08]} 51. Kh1 {[%emt 0:01:01]} Bf2 {[%emt 0:00:29]} 52. c5 {[%emt 0:02:48]} Bxa6 {[%emt 0:00:17]} 53. Bf3 {[%emt 0:01:14]} Rxb4 {[%emt 0:00:15]} 54. c6 {[%emt 0:00:12]} Rc4 {[%emt 0:00:47]} 55. Rf1 {[%emt 0:01:37]} Bb6 {[%emt 0:00:29]} 56. Be2 {[%emt 0:00:37]} Ra4 {[%emt 0:00:28]} 57. Bxa6 {[%emt 0:00:28]} Rxa6 {[%emt 0:00:01]} 58. Rd1 {[%emt 0:00:07]} Ra2 {[%emt 0:00:17]} 59. Rd7+ {[%emt 0:00:11]} Kf6 {[%emt 0:00:07]} 60. Rd6+ {[%emt 0:01:35]} Kg5 {[%emt 0:00:11]} 61. h4+ {[%emt 0:00:08]} Kh5 {[%emt 0:00:13]} 62. Rd7 {[%emt 0:00:48]} Kxh4 {[%emt 0:00:24]} 63. c7 {[%emt 0:00:26] [#]} Bxc7 $1 {[%emt 0:00:05]} 64. Rxc7 {[%emt 0:00:08]} Kg4 {[%emt 0:00:33]} 65. Rc3 {[%emt 0:00:15]} f4 {[%emt 0:00:05]} 66. Kg1 {[%emt 0:00:47]} f3 {[%emt 0:00:10]} 67. Kf1 {[%emt 0:00:25]} Kg3 {[%emt 0:00:17]} 68. Rc1 {[%emt 0:00:18]} Rh2 {[%emt 0:00:16]} 0-1

[Event "Gibraltar Amateurs B 2020"]
[Site "Caleta"]
[Date "2020.01.27"]
[Round "3.5"]
[White "Anjali R. Sagar"]
[Black "Gonzalez Pabollet, Jesus Maria S"]
[Result "1-0"]
[ECO "B01"]
[WhiteElo "1775"]
[BlackElo "1845"]
[Annotator "NA"]
[PlyCount "57"]
[EventDate "2020.01.20"]
[EventType "swiss"]
[EventCountry "GGB"]
[SourceTitle "playchess.com"]
[Source "ChessBase"]
[SourceQuality "1"]
[TimeControl "6600+10"]

{[%evp 8,57,56,53,32767,32767,32767,32767,35,32767,81,31,32767,32767,32767,32767,66,32767,43,32767,32767,32767,32767,32767,95,32767,32767,-43,-29,-21,106,32767,195,181,32767,184,204,238,32767,321,402,32767,697,793,650,748,1933,2496,2570,32767,32767,29996]} 1. e4 {[%emt 0:00:00]} d5 {[%emt 0:06:54]} 2. exd5 {[%emt 0:00:02]} Qxd5 {[%emt 0:00:07]} 3. Nc3 {[%emt 0:00:08]} Qa5 {[%emt 0:00:09]} 4. d4 {[%emt 0:00:20]} c6 {[%emt 0:00:56]} 5. Nf3 {[%emt 0:00:17]} Bg4 {[%emt 0:01:14]} 6. Be2 {[%emt 0:00:12]} Nf6 {[%emt 0:01:07]} 7. Bd2 {[%emt 0:02:53]} Qc7 {[%emt 0:03:01]} 8. h3 {[%emt 0:00:52]} Bf5 {[%emt 0:02:28] [#]} 9. Ne5 {[%emt 0:02:30]} (9. g4 $1 $16 {[%cal Rg4f5]} Bg6 10. h4) 9... e6 {[%emt 0:07:05]} 10. g4 {[%emt 0:06:21]} Be4 {[%emt 0:06:21]} 11. Rg1 {[%emt 0:11:41]} h6 {[%emt 0:09:54]} 12. h4 {[%emt 0:06:20]} Bd5 {[%emt 0:08:12]} 13. g5 {[%emt 0:06:41]} hxg5 {[%emt 0:05:00]} 14. hxg5 {[%emt 0:00:04]} Ne4 {[%emt 0:12:00]} 15. Nxd5 {[%emt 0:10:41]} exd5 {[%emt 0:09:08]} 16. Bf4 {[%emt 0:06:28]} Nd7 {[%emt 0:20:38]} 17. c3 {[%emt 0:15:09]} Bd6 {[%emt 0:01:04]} 18. f3 {[%emt 0:02:09]} Nxe5 {[%emt 0:01:38]} (18... Nec5 $11 19. Nxd7 Nxd7 20. Bxd6 Qxd6) 19. dxe5 {[%emt 0:12:23]} Bxe5 {[%emt 0:12:32]} (19... Bc5 $16 20. Rf1 Nxg5 21. Bxg5 Qxe5) 20. Bxe5 {[%emt 0:01:05]} Qxe5 {[%emt 0:00:01]} 21. fxe4 {[%emt 0:00:32]} Rh2 {[%emt 0:01:28]} 22. Qd3 {[%emt 0:07:10]} O-O-O {[%emt 0:00:50]} 23. O-O-O {[%emt 0:00:58]} Rdh8 {[%emt 0:00:30]} 24. Bg4+ {[%emt 0:00:42]} Kd8 {[%emt 0:00:42]} (24... Kb8 $142 25. exd5 Rd8) 25. exd5 {[%emt 0:01:14]} Qxg5+ {[%emt 0:00:03]} 26. Kb1 {[%emt 0:00:12]} c5 {[%emt 0:00:44]} 27. Qg3 {[%emt 0:03:22]} Qg6+ {[%emt 0:00:15]} 28. Ka1 {[%emt 0:00:41]} Qc2 {[%emt 0:00:22]} 29. Qd6+ {[%emt 0:00:14] Double Attack} 1-0

[Event "Gibraltar Amateurs B 2020"]
[Site "Caleta"]
[Date "2020.01.27"]
[Round "3.6"]
[White "Hari Charan Sai Kalluri"]
[Black "D`haluin, Wim"]
[Result "1-0"]
[ECO "B08"]
[WhiteElo "1836"]
[BlackElo "1686"]
[Annotator "NA"]
[PlyCount "65"]
[EventDate "2020.01.20"]
[EventType "swiss"]
[EventCountry "GGB"]
[SourceTitle "playchess.com"]
[Source "ChessBase"]
[SourceQuality "1"]
[TimeControl "6600+10"]

1. d4 {[%emt 0:00:00]} Nf6 {[%emt 0:04:45]} 2. Nf3 {[%emt 0:00:00]} d6 {[%emt 0:00:54]} 3. Nc3 {[%emt 0:00:46]} c6 {[%emt 0:01:49]} 4. e4 {[%emt 0:00:05]} g6 {[%emt 0:04:27]} 5. Be2 {[%emt 0:00:45]} Bg7 {[%emt 0:00:26]} 6. Bg5 {[%emt 0:00:04]} O-O {[%emt 0:02:10]} 7. Qd2 {[%emt 0:00:02] B08: Pirc Defence: Classical System} Bg4 {[%emt 0:02:21]} (7... b5 8. a3 Qc7 9. Bh6 e5 10. h4 Bxh6 11. Qxh6 Ng4 12. Qd2 h5 13. d5 a6 14. Nh2 Nxh2 15. Rxh2 {1-0 (38) Nizynski,M (2618)-McNab,C (2523) England 1999}) 8. h3 {[%emt 0:00:31]} Bxf3 {[%emt 0:01:51]} 9. Bxf3 {[%emt 0:02:51]} Nbd7 {[%emt 0:03:07]} 10. h4 {[%emt 0:01:10]} c5 $146 {[%emt 0:06:19]} ({Predecessor:} 10... h5 $11 {keeps the balance.} 11. Bh6 c5 12. Bxg7 Kxg7 13. d5 a6 14. a3 b5 {0-1 (56) Kavvadas,D (1287)-Giannoulis,D (1709) Petroupoli 2012}) 11. O-O-O {[%emt 0:04:03]} cxd4 {[%emt 0:02:20]} 12. Qxd4 {[%emt 0:03:13]} Qa5 {[%emt 0:02:46]} ({Better is} 12... Ng4 $15 13. Qd2 Bxc3 14. bxc3 Ngf6) 13. Qa4 {[%emt 0:02:43]} Qe5 {[%emt 0:04:11]} 14. Be3 {[%emt 0:12:10]} Nc5 {[%emt 0:03:19]} 15. Qb4 {[%emt 0:03:31]} a5 {[%emt 0:10:44]} 16. Qb5 {[%emt 0:01:07]} Nfd7 {[%emt 0:15:53]} 17. g3 {[%emt 0:02:49]} a4 {[%emt 0:04:04]} 18. Bg4 {[%emt 0:10:45]} (18. a3 $16) 18... f5 {[%emt 0:05:53]} (18... a3 $11 {remains equal.} 19. Bd4 axb2+ 20. Qxb2 Qxd4 21. Rxd4 Bxd4 22. Bxd7 Nxe4) 19. Bd4 {[%emt 0:03:59]} Qe6 $2 {[%emt 0:11:05]} (19... Nb3+ $14 20. axb3 Qxb5 21. Nxb5 Bxd4) 20. Be2 {[%emt 0:03:31]} Ne5 {[%emt 0:07:18]} 21. f4 {[%emt 0:01:19]} Qd7 {[%emt 0:01:06]} 22. fxe5 {[%emt 0:00:20]} Qxb5 {[%emt 0:00:50]} 23. Bxb5 {[%emt 0:00:14]} Nxe4 {[%emt 0:01:14]} 24. Nxe4 {[%emt 0:00:12]} dxe5 {[%emt 0:00:08]} 25. Ng5 {[%emt 0:01:02]} exd4 {[%emt 0:00:31]} 26. Kb1 {[%emt 0:02:23]} Rf6 {[%emt 0:07:54]} 27. h5 {[%emt 0:02:41]} Rc8 {[%emt 0:03:59]} 28. Bxa4 {[%emt 0:00:35]} Rb6 {[%emt 0:00:24]} 29. hxg6 $18 {[%emt 0:01:12]} h6 {[%emt 0:00:12]} 30. Ne6 {[%emt 0:01:01]} Rcc6 {[%emt 0:00:16]} 31. Bxc6 {[%emt 0:00:08]} bxc6 {[%emt 0:00:09]} 32. Nxg7 {[%emt 0:00:08]} Kxg7 {[%emt 0:00:02]} 33. Rxd4 {[%emt 0:00:05]} 1-0